Cogmind - Beta 10.2 --- EXPLORER MODE // 2021.02.20 @ 17:42:13 Player: Huntingteckel Result: Destroyed by Y-45 Defender with Beam Rifle Performance ------------- Evolutions (1) 500 Regions Visited (3) 600 Robots Destroyed (31) 155 Value Destroyed (804) 804 Prototype IDs (0) 0 Alien Tech Used (0) 0 Bonus (0) 0 TOTAL SCORE: 2059 Bonus ------- None Cogmind --------- Core Integrity 0/400 Matter 262/300 Energy 148/150 System Corruption 1% Temperature Cool (9) Movement Rolling (100) Ox1 Location -9/Storage Parts ------- > --- POWER (2) -------- Light Ion Engine Light Ion Engine > --- PROPULSION (3) --- Improved Treads Wheel Compact Wheel > --- UTILITY (3) ------ Medium Storage Unit Large Storage Unit Weapon Shielding > --- WEAPON (2) ------- Beam Rifle Shotgun > --- INVENTORY (14) --- Light Ion Engine Light Treads Aluminum Leg Wheel Wheel Terrain Scanner Terrain Scanner Targeting Computer Utility Shielding EM Pulse Gun Heavy Assault Rifle Heavy Assault Rifle Peak State ------------ > --- POWER ------------ Light Ion Engine Light Ion Engine > --- PROPULSION ------- Improved Treads Wheel Compact Wheel > --- UTILITY ---------- Medium Storage Unit Large Storage Unit Weapon Shielding > --- WEAPON ----------- Beam Rifle Shotgun > --- INVENTORY -------- Light Ion Engine Light Treads Aluminum Leg Terrain Scanner Targeting Computer Utility Shielding Heavy Assault Rifle Heavy Assault Rifle [Rating: 14] Favorites ----------- Power Light Ion Engine Engine Light Ion Engine Power Core Light Nuclear Core Propulsion Light Treads Treads Light Treads Leg Aluminum Leg Wheel Compact Wheel Utility Large Storage Unit Storage Large Storage Unit Protection Utility Shielding Weapon Small Laser Energy Gun Small Laser Ballistic Gun Light Assault Rifle Launcher Rocket Launcher Build | -11 -10 -9 -9 ------- Run | Scr Mat Mat Sto Slots Evolved 3 | . 1 2 . Power 1 | . . 1 . Propulsion 1 | . 1 . . Utility 1 | . . 1 . Weapon . | . . . . Parts Attached 27 | . 9 6 12 Power 11 | . 3 3 5 Engine 9 | . 3 1 5 Core 2 | . . 2 . Reactor . | . . . . Propulsion 7 | . 3 1 3 Treads 4 | . 2 1 1 Leg 1 | . 1 . . Wheel 2 | . . . 2 Hover . | . . . . Flight . | . . . . Utility 4 | . 1 2 1 Device . | . . . . Storage 2 | . 1 1 . Processor . | . . . . Hackware . | . . . . Protection 2 | . . 1 1 Artifact . | . . . . Weapon 5 | . 2 . 3 Energy Gun 2 | . 1 . 1 Energy Cannon . | . . . . Ballistic Gun 2 | . 1 . 1 Ballistic Cannon . | . . . . Launcher 1 | . . . 1 Special Weapon . | . . . . Impact Weapon . | . . . . Slashing Weapon . | . . . . Piercing Weapon . | . . . . Special Melee Weapon . | . . . . Unidentified Prototypes . | . . . . Parts Lost 11 | . . 1 10 Power 5 | . . . 5 Propulsion 3 | . . . 3 Utility 1 | . . . 1 Weapon 2 | . . 1 1 Highest Loss Streak 10 | . . 1 10 Average Slot Usage (%) 84 | . 87 87 80 Engine 9 | . 11 2 12 Core 4 | . . 16 2 Treads 12 | . . 29 13 Leg 10 | . 27 . . Wheel 3 | . . . 10 Storage 16 | . 12 19 20 Protection 10 | . 12 10 8 Energy Gun 8 | . 11 9 5 Ballistic Gun 6 | . 10 . 6 Naked Turns . | . . . . Heaviest Build 38 | 16 24 38 37 Greatest Support 60 | 20 40 60 60 Greatest Overweight (x) 9 | . 5 . 9 Average Overweight (x) . | . . . . Largest Inventory Capacity 14 | 8 10 14 14 Average Capacity 12 | 8 9 13 14 Most Carried 12 | 7 10 8 12 Average Carried 7 | 7 8 5 7 Final Capacity 14 | 8 10 14 14 Final Carried 12 | 7 6 7 12 Class Distribution -------------------- 80% | Hacker-Mutant 19% | Scavenger-Mutant Dominant Class ---------------- Hacker-Mutant | -10/Materials Hacker-Mutant | -9/Materials Scavenger-Mutant | -9/Storage Resources | -11 -10 -9 -9 ----------- Run | Scr Mat Mat Sto Matter Collected 570 | 200 38 132 200 Remotely . | . . . . Salvage Created 1026 | . 255 195 576 Parts 69 | . 19 11 39 Haulers Intercepted . | . . . . Recyclers Shooed 1 | . . . 1 Parts Field Recycled . | . . . . Retrieved Matter . | . . . . Parts Self-Destructed . | . . . . Prevented . | . . . . Kills | -11 -10 -9 -9 ------- Run | Scr Mat Mat Sto Combat Hostiles Destroyed 22 | . 7 4 11 Guns 20 | . 7 4 9 AOE 2 | . . . 2 Classes Destroyed 8 | . 3 2 3 Worker 2 | . . . 2 Builder 4 | . . . 4 Recycler 1 | . . . 1 Watcher 2 | . 1 . 1 Swarmer 4 | . 2 . 2 Grunt 11 | . 5 2 4 Duelist 1 | . . 1 . Sentry 6 | . . 1 5 Best Kill Streak 5 | . 3 3 5 Combat Bots Only 4 | . 3 3 4 Max Kills in Single Turn 5 | . 1 1 5 Gunslinging . | . . . . Exploded 2 | . . . 2 Melee . | . . . . Uniques/NPCs Destroyed . | . . . . Combat | -11 -10 -9 -9 -------- Run | Scr Mat Mat Sto Damage Taken 1723 | . 117 398 1208 Core 423 | . 19 72 332 Absorbed by Shields . | . . . . Core Remaining (%) 96 | 100 92 . . Volleys Fired 94 | . 20 34 40 Largest 2 | . 2 1 2 Hottest 79 | . 60 40 79 Shots Fired 131 | . 40 34 57 Gun 130 | . 40 34 56 Cannon . | . . . . Launcher 1 | . . . 1 Special . | . . . . Kinetic 59 | . 20 . 39 Thermal 71 | . 20 34 17 Explosive 1 | . . . 1 Electromagnetic . | . . . . Robot Hit Streak 67 | . 23 57 67 Robot Miss Streak 3 | . 1 . 3 Penetration Max . | . . . . Secondary Targets 3 | . 2 . 1 Max Gunslinging Chain 1 | . 1 . 1 Shots Hit Robots 124 | . 37 34 53 Core Hits 53 | . 15 9 29 Critical Hits . | . . . . Critical Kills . | . . . . Critical Parts Destroyed . | . . . . Melee Attacks . | . . . . Impact . | . . . . Slashing . | . . . . Piercing . | . . . . Sneak Attacks . | . . . . Combat Hostiles . | . . . . Follow-up Attacks . | . . . . Damage Inflicted 1662 | . 311 299 1052 Guns 1417 | . 311 299 807 Cannons . | . . . . Explosions 213 | . . . 213 Melee . | . . . . Ramming 32 | . . . 32 Kinetic 743 | . 123 . 620 Thermal 674 | . 188 299 187 Explosive 213 | . . . 213 Electromagnetic . | . . . . Impact . | . . . . Slashing . | . . . . Piercing . | . . . . Highest Corruption 1 | . . . 1 Average Corruption 1 | . . . 1 Corruption Purged . | . . . . Overload Shots . | . . . . Overflow Damage . | . . . . Projectiles . | . . . . Explosions . | . . . . Melee . | . . . . Knockbacks . | . . . . Impact . | . . . . Kinetic . | . . . . Secondary . | . . . . Self-Inflicted Damage 15 | . . . 15 Shots . | . . . . Rammed 5 | . . . 5 Targets Rammed 5 | . . . 5 Kicked . | . . . . Crushed . | . . . . Highest Temperature 343 | . 114 343 330 Average Temperature 120 | . 43 165 114 Received Heat Transfer 1059 | . 90 216 753 Siege Activations . | . . . . Robots Corrupted . | . . . . Combat Hostiles . | . . . . Parts Fried . | . . . . Impact Corruptions . | . . . . Robots Melted . | . . . . Combat Hostiles . | . . . . Parts Melted 2 | . . 2 . Heat Transferred 1556 | . 425 650 481 Parts Sabotaged . | . . . . Parts Stolen . | . . . . Parts Stripped . | . . . . Power Chain Reactions . | . . . . Missiles Intercepted . | . . . . Alert | -11 -10 -9 -9 ------- Run | Scr Mat Mat Sto Peak Influence 292 | . 210 100 292 Initial 26 | . . . 26 Average 74 | . 69 30 114 Maximum Alert Level 1 | . 1 . 1 Low Security (%) 89 | 100 95 100 74 Level 1 10 | . 4 . 25 Level 2 . | . . . . Level 3 . | . . . . Level 4 . | . . . . Level 5 . | . . . . High Security . | . . . . Max Security . | . . . . Squads Dispatched 4 | . 1 1 2 Investigation 1 | . 1 . . Extermination . | . . . . Reinforcement 3 | . . 1 2 Assault . | . . . . Garrison . | . . . . Intercept . | . . . . Construction Impeded . | . . . . Haulers Reinforced . | . . . . Stealth | -11 -10 -9 -9 --------- Run | Scr Mat Mat Sto Distress Signals 1 | . . . 1 Communications Jammed . | . . . . Distress Signals . | . . . . Times Spotted 35 | . 10 7 18 Peak Tracking Total 5 | . 3 4 5 Tactical Retreats 1 | . . . 1 Traps | -11 -10 -9 -9 ------- Run | Scr Mat Mat Sto Traps Triggered 7 | . 4 . 3 Indirectly . | . . . . Trap Hack Attempts . | . . . . Triggered . | . . . . Disarmed . | . . . . Reprogrammed . | . . . . Reused . | . . . . Traps Extracted . | . . . . Installed . | . . . . Triggered . | . . . . Machines | -11 -10 -9 -9 ---------- Run | Scr Mat Mat Sto Machines Disabled . | . . . . Max in Single Turn . | . . . . Machines Sabotaged . | . . . . Garrisons Compromised . | . . . . Overloaded Fab Kills . | . . . . Fab Network Shutdowns . | . . . . Hacking | -11 -10 -9 -9 --------- Run | Scr Mat Mat Sto Machines Accessed 4 | . 2 1 1 Terminals 3 | . 2 1 . Fabricators . | . . . . Repair Stations . | . . . . Recycling Units 1 | . . . 1 Scanalyzers . | . . . . Garrison Access . | . . . . Total Hacks 9 | . 6 2 1 Successful 7 | . 4 2 1 Failed 2 | . 2 . . Catastrophic . | . . . . Database Lockouts . | . . . . Manual 1 | . 1 . . Terminals 8 | . 6 2 . Fabricators . | . . . . Repair Stations . | . . . . Recycling Units 1 | . . . 1 Scanalyzers . | . . . . Garrison Access . | . . . . Terminal Hacks 6 | . 4 2 . Record 4 | . 3 1 . Robot Analysis 1 | . 1 . . Locate Traps 1 | . . 1 . Fabricator Hacks . | . . . . Repair Station Hacks . | . . . . Recycling Unit Hacks 1 | . . . 1 Process 1 | . . . 1 Scanalyzer . | . . . . Garrison Access Hacks . | . . . . Unauthorized Hacks . | . . . . Terminals . | . . . . Fabricators . | . . . . Repair Stations . | . . . . Recycling Units . | . . . . Scanalyzers . | . . . . Garrison Access . | . . . . Data Cores Recovered . | . . . . Used . | . . . . Hacking Detections 1 | . 1 . . Full Trace Events 1 | . 1 . . Feedback Events . | . . . . Feedback Blocked . | . . . . Robot Schematics Acquired . | . . . . Robots Built . | . . . . Matter . | . . . . Time . | . . . . Total Robot Build Rating . | . . . . Part Schematics Acquired . | . . . . Parts Built . | . . . . Matter . | . . . . Time . | . . . . Total Part Build Rating . | . . . . Parts Repaired . | . . . . Time . | . . . . Parts Recycled . | . . . . Recycled Matter 132 | . . . 132 Retrieved Matter . | . . . . Retrieved Components . | . . . . Parts Scanalyzed . | . . . . Part Schematics Acquired . | . . . . Parts Damaged . | . . . . Bothacking | -11 -10 -9 -9 ------------ Run | Scr Mat Mat Sto Used RIF Installer . | . . . . Robots Hacked . | . . . . Non-combat . | . . . . Combat . | . . . . Robot Hacks Applied . | . . . . Relay Couplers Released . | . . . . Robots Rewired . | . . . . Allies Hacked . | . . . . Hacks Repelled . | . . . . Allies | -11 -10 -9 -9 -------- Run | Scr Mat Mat Sto Total Allies . | . . . . Largest Group . | . . . . Highest-Rated Group . | . . . . Highest-Rated Ally . | . . . . Total Orders . | . . . . Ally Attacks . | . . . . Total Damage . | . . . . Kills . | . . . . Allies Corrupted . | . . . . Allies Melted . | . . . . Intel | -11 -10 -9 -9 ------- Run | Scr Mat Mat Sto Robot Analysis Total 1 | . 1 . . Derelict Logs Recovered . | . . . . Drone Launches . | . . . . Drone Recoveries . | . . . . Exploration | -11 -10 -9 -9 ------------- Run | Scr Mat Mat Sto Turns Passed 1341 | 39 504 319 479 Spaces Moved 715 | 33 285 138 259 Core 8 | . 7 . 1 Treads 242 | . 5 138 99 Legs 306 | 33 273 . . Wheels 159 | . . . 159 Hover . | . . . . Flight . | . . . . Fastest Speed 100 | 120 120 160 100 Average Speed 137 | 120 137 160 128 Slowest Speed 500 | 120 300 160 500 Overloaded Moves . | . . . . Propulsion Burnouts . | . . . . Robots Hopped . | . . . . Cave-ins Triggered . | . . . . Exploration Rate (%) 27 | 3 48 12 47 Regions Visited 3 Branch Regions 1 Pre-discovered Areas . | . . . . Known Exits Taken 3 | 1 1 1 . Unknown Exits Taken . | . . . . Scrap Searched . | . . . . Spaces Dug . | . . . . Terrain Destroyed 9 | . . . 9 Melee . | . . . . Projectile . | . . . . AOE 9 | . . . 9 Terrain Rammed . | . . . . Walls Destroyed . | . . . . Machines Disabled . | . . . . Actions | -11 -10 -9 -9 --------- Run | Scr Mat Mat Sto Total 946 | 32 361 204 349 Wait 75 | . 39 20 16 Move 712 | 32 284 137 259 Hop . | . . . . Pick Up 28 | . 7 4 17 Fast Attach . | . . . . Attach 26 | . 8 6 12 Detach 4 | . 1 3 . Swap 1 | . 1 . . Drop 1 | . 1 . . Fire 94 | . 20 34 40 Melee . | . . . . Ram 5 | . . . 5 Kick . | . . . . Crush . | . . . . Escape Stasis . | . . . . Rewire . | . . . . Trap . | . . . . Miscellaneous . | . . . . Route ------- -11/Scrapyard -10/Materials (discovered 2 exits: *Mat / *Min) -9/Materials -9/Storage (discovered 1 exit: *Mat) History --------- Turn | Location | Event 1 | -11/Scrapyard | Identified exit to Materials 1 | -11/Scrapyard | Discovered exit to Materials (range 3) 40 | -11/Scrapyard | Entered Materials 40 | -10/Materials | Evolved 1 slot: Propulsion x1 222 | -10/Materials | Identified exit to Mines 222 | -10/Materials | Discovered exit to Mines (range 6) 303 | -10/Materials | Build established: Hacker-Mutant 481 | -10/Materials | Identified exit to Materials 481 | -10/Materials | Discovered exit to Materials (range 16) 544 | -10/Materials | Entered another Materials area 544 | -9/Materials | Evolved 2 slots: Power x1, Utility x1 850 | -9/Materials | Identified exit to Storage 850 | -9/Materials | Discovered exit to Storage (range 8) 863 | -9/Materials | Entered Storage 968 | -9/Storage | Core integrity fell below 50% 1017 | -9/Storage | Core integrity fell below 20% 1057 | -9/Storage | Lost 10 parts (5p3n1u1w) 1333 | -9/Storage | Identified exit to Materials 1333 | -9/Storage | Discovered exit to Materials (range 12) 1342 | -9/Storage | Destroyed by Y-45 Defender with Beam Rifle Last Messages --------------- 01315_ Recycling unit begins recycling process. 01316_ Slammed into R-06 Scavenger. 01317_ Destabilizing: System interference. 01317_ Beam Rifle temporarily disabled. 01320_ Connecting with Recycling Unit... >>Recycling(Process) Analyzing inventory... Recycling at 100% efficiency: Heat Sink (11) Heat Sink (10) Structural Scanner (0) Terrain Scan Processor (9) Terrain Scan Processor (10) Lgt. Armor Plating (20) Lgt. Ion Engine (19) Flight Unit (9) Sml. Storage Unit (44) 01333_ Acquired 41 matter. 01333_ EXIT=FOUND: MATERIALS 01336_ Acquired EM Pulse Gun. Map ----- +----------------------------------------------------+ | | | | | | | | | | | | | | | | | | | | | | | | | ??????????????????????????????????????? | | ??????????????????????????????????????? | | ??????????????????????????????????????? | | ??????????????????????????????????????? | | ??????????????????????????????????????? | | ??????????????????????????????????????? | | ??????????????????????????????????????? | | ???????????????????????#####??????????? | | ???????????????????????# #??????????? | | ???????????????###??##?# < ###????????? | | ???????????????#!!!!" # ""#????????? | | ????????????????? # Y"#????????? | | ????????????????????" m ""#????????? | | ???????????????????????# @ #??????????? | | ???????????????????????# #??????????? | | ??????????????#####????# #??????????? | | ??????????????#"""#????# #??????????? | | ?????????######"Y"###### ##?????????? | | ?????????# # #?????????? | | ?????????# """ """ #Y #?????????? | | ?????????# """ """ + #?????????? | | ?????????# """ """ # ####??????? | | ?????????# # #"""#?????? | | ?????????############/###/###"T"###???? | | ????????????????????# #?#r #???? | | ???????????########## ### """ """ ##??? | | ??????? # """ """ #??? | | ??????? / """ """ #???? | | ??????? # #???? | | ????????###########+###+# * #???? | | ???########?????????????# !% #???? | | ???# = #?????????????# #???? | | ???# % #?????????????####+######???? | | ???# #????????????????# #????????? | | ???# #????????????????# #????????? | | ???# ! #????????????????#!#????????? | | ???# #?????????######?# #????????? | | ???# %=########### ### ##???????? | +----------------------------------------------------+ Best States ------------- Heat Dissipation 28 Energy Generation 23 Energy Capacity 310 Matter Stores 300 Matter Capacity 300 Sight Range 16 Terrain Scan Density 10 Armor Coverage 150 Resistance: KI 35 Resistance: TH 35 Resistance: EX 35 Resistance: EM 35 Resistance: I 35 Resistance: S 35 Resistance: P 35 Utility Shielding 33 Weapon Shielding 33 Evasion (%) 40 Recoil Reduction 3 Offensive Hacking 20 Item Schematics ----------------- None Robot Schematics ------------------ None Fabricated ------------ Nothing Alien Tech Used ----------------- None Achievements -------------- None Challenges ------------ None Game ------ Seed LightSystemAxe Manual? 0 Play Time 00:29:45 Cumulative 17.7 hours Start 2021.02.07 @ 18:41:00 End 2021.02.20 @ 17:42:13 Sessions 3 Manual Loads 0 Difficulty Explorer Special Mode None Game No. 28 Rogue 0 Adventurer 27 Explorer 1 Win Type - Total 0 Types 0/0/0/0/0/0/0/0/0 Lore% 5 Gallery% 20 Achievement% 17 Wizard Run 0 Options --------- ASCII 1 Keyboard 1 Movement Numpad Keybinds 0 Fullscreen 1 Font 18/SmallcapsGlow Map View 76x50 Tactical HUD 1 Map Filters NONE Filters NONE Steam 1 RUN: ac693edd-37d7-4951-9a22-bf5d51112eda